fUSD/lending_fUSD_20251105
["ID","MTS","AMOUNT","RATE_DAILY","PERIOD"]
[393210339,1762321836115,-161.13202481,0.00037452,30]
[393210340,1762321836124,-1425.0,0.00037471,2]
[393210341,1762321836133,-500.0,0.0003748,30]
[393210342,1762321836143,-4000.0,0.000375,13]
[393210343,1762321836152,-433.0,0.00037511,2]
[393210344,1762321836161,-419.0,0.00037511,2]
[393210345,1762321836170,-1027.27617674,0.00037517,20]
[393210346,1762321836179,-1002.4367267,0.00037517,20]
[393210347,1762321836188,-1062.94636562,0.00037517,20]
[393210348,1762321836197,-1048.30047338,0.00037517,20]
[393210349,1762321836206,-1011.34346596,0.00037517,20]
[393210350,1762321836215,-1089.7239742,0.00037517,20]
[393210351,1762321836224,-1096.32347837,0.00037517,20]
[393210352,1762321836233,-1035.41812552,0.00037517,20]
[393210353,1762321836242,-150.0,0.00037523,5]
[393210354,1762321836251,-1000.0,0.00037523,5]
[393210355,1762321836260,-1425.0,0.00037528,2]
[393210356,1762321836270,-1000.0,0.00037534,120]
[393210357,1762321836279,-890.79556483,0.00037559,2]
[393210358,1762321836289,-904.85184766,0.00037564,2]
[393210359,1762321836298,-161.1320248,0.00037589,30]
[393210360,1762321836308,-800.0,0.000376,13]
[393210361,1762321836317,-2296.73599523,0.0003762,4]
[393210362,1762321836326,-150.0,0.00037623,7]
[393210363,1762321836336,-2296.73599523,0.00037638,4]
[393210364,1762321836346,-433.0,0.00037648,2]
[393210365,1762321836355,-419.0,0.00037648,2]
[393210366,1762321836364,-9879.75331461,0.0003766,2]
[393210367,1762321836374,-1425.0,0.00037665,2]
[393210368,1762321836383,-2296.73599523,0.0003769,4]
[393210369,1762321836393,-150.0,0.000377,2]
[393210370,1762321836402,-916.0,0.000377,18]
[393210371,1762321836412,-1000.0,0.000377,15]
[393210372,1762321836420,-1000.0,0.000377,15]
[393210373,1762321836430,-1000.0,0.000377,13]
[393210374,1762321836439,-1002.0,0.000377,15]
[393210375,1762321836448,-800.0,0.000377,13]
[393210376,1762321836457,-17677.11,0.000377,2]
[393210377,1762321836467,-300.0,0.00037709,2]
[393210378,1762321836476,-150.0,0.00037709,2]
[393210379,1762321836486,-150.0,0.00037709,2]
[393210380,1762321836495,-169.01,0.00037713,2]
[393210381,1762321836505,-378.86,0.00037713,2]
[393210382,1762321836514,-169.01,0.00037713,2]
[393210383,1762321836524,-169.01,0.00037713,2]
[393210384,1762321836533,-169.01,0.00037713,2]
[393210385,1762321836543,-1204.91,0.0003772,2]
[393210386,1762321836552,-161.13202481,0.00037726,30]
[393210387,1762321836561,-150.0,0.00037731,7]
[393210388,1762321836571,-2296.73599523,0.00037734,4]
[393210389,1762321836583,-1300.0,0.0003774,7]
[393210390,1762321836592,-3515.0,0.00037753,5]
[393210391,1762321836602,-1425.0,0.00037755,2]
[393210392,1762321836611,-904.85184766,0.00037772,2]
[393210393,1762321836620,-433.0,0.00037785,2]
[393210394,1762321836629,-419.0,0.00037785,2]
[393210395,1762321836638,-1000.0,0.00037786,7]
[393210396,1762321836648,-1572.7290839,0.00037787,2]
[393210397,1762321836657,-1500.0,0.00037796,5]
[393210398,1762321836667,-2296.73599523,0.00037798,4]
[393210399,1762321836676,-1425.0,0.00037799,2]
[393210400,1762321836686,-800.0,0.000378,13]
[393210401,1762321836695,-213.406102,0.00037804,2]
[393210402,1762321836706,-1000.0,0.00037808,120]
[393210403,1762321836715,-425.2962,0.00037818,10]
[393210404,1762321836724,-5000.0,0.00037828,5]
[393210405,1762321836733,-162.01367149,0.00037828,11]
[393210406,1762321836742,-258.89485098,0.00037828,2]
[393210407,1762321836751,-1425.0,0.00037839,2]
[393210408,1762321836760,-199.0,0.00037842,8]
[393210409,1762321836769,-2296.73599523,0.00037863,4]
[393210410,1762321836779,-2296.73599523,0.00037873,4]
[393210411,1762321836788,-151.0,0.00037879,14]
[393210412,1762321836798,-500.0,0.00037882,120]
[393210413,1762321836807,-500.0,0.00037882,120]
[393210414,1762321836817,-523.46270611,0.00037882,120]
[393210415,1762321836826,-588.29,0.00037882,2]
[393210416,1762321836836,-500.0,0.00037882,120]
[393210417,1762321836845,-7368.2521,0.00037883,2]
[393210418,1762321836856,-1000.0,0.00037883,120]
[393210419,1762321836865,-6890.20798569,0.00037888,4]
[393210420,1762321836874,-258.89485096,0.00037888,2]
[393210421,1762321836884,-2296.73599523,0.0003789,4]
[393210422,1762321836894,-27560.8319428,0.00037897,4]
[393210423,1762321836904,-800.0,0.000379,13]
[393210424,1762321836914,-566.95341,0.000379,2]
[393210425,1762321836924,-2296.73599523,0.000379,4]
[393210426,1762321836933,-588.29,0.00037907,2]
[393210427,1762321836942,-500.0,0.00037907,120]
[393210428,1762321836951,-25264.0959475,0.00037908,4]
[393210429,1762321836960,-500.0,0.00037909,120]
[393210430,1762321836969,-506.26309284,0.0003791,2]
[393210431,1762321836978,-16352.38191397,0.0003791,2]
[393210432,1762321836989,-588.29,0.00037917,2]
[393210433,1762321837000,-500.0,0.00037917,120]
[393210434,1762321837009,-892.24381381,0.00037918,2]
[393210435,1762321837019,-433.0,0.00037922,2]
[393210436,1762321837028,-419.0,0.00037922,2]
[393210437,1762321837038,-159.37883789,0.00037927,30]
[393210438,1762321837047,-999.0,0.00037927,120]
[393210439,1762321837056,-588.29,0.00037927,2]
[393210440,1762321837067,-588.29,0.00037927,2]
[393210441,1762321837076,-500.0,0.00037927,120]
[393210442,1762321837085,-518.32,0.00037927,120]
[393210443,1762321837094,-33254.3761,0.00037928,2]
[393210444,1762321837103,-171014.71232259,0.00037928,2]
[393210445,1762321837157,-248985.28767741,0.00037928,2]
[393210446,1762321837168,-1000.0,0.00037928,2]
[393210447,1762321837177,-1425.0,0.00037934,2]
[393210448,1762321837187,-258.89485096,0.00037948,2]
[393210449,1762321837197,-1456.94118479,0.00037956,2]
[393210450,1762321837206,-890.79556488,0.00037961,2]
[393210451,1762321837215,-588.29,0.00037968,2]
[393210452,1762321837224,-151.0,0.00037969,31]
[393210453,1762321837233,-151.0,0.00037969,31]
[393210454,1762321837242,-500.0,0.00037969,31]
[393210455,1762321837256,-151.0,0.00037969,31]
[393210456,1762321837265,-300.0,0.00037969,31]
[393210457,1762321837274,-151.0,0.00037969,31]
[393210458,1762321837283,-156.97775361,0.00037969,31]
[393210459,1762321837292,-500.0,0.00037969,31]
[393210460,1762321837301,-151.0,0.00037969,31]
[393210461,1762321837310,-311.1,0.00037969,31]
[393210462,1762321837319,-151.0,0.00037969,31]
[393210463,1762321837328,-151.0,0.00037969,31]
[393210464,1762321837337,-322.6107,0.00037969,31]
[393210465,1762321837346,-500.0,0.00037969,31]
[393210466,1762321837355,-236.65065463,0.00037969,31]
[393210467,1762321837364,-334.5472959,0.00037969,31]
[393210468,1762321837373,-151.0,0.00037969,31]
[393210469,1762321837383,-500.0,0.00037969,31]
[393210470,1762321837392,-250.0,0.00037969,31]
[393210471,1762321837401,-163.66742606,0.00037969,31]
[393210472,1762321837410,-310.6741041,0.00037969,31]
[393210473,1762321837420,-151.0,0.00037969,31]
[393210474,1762321837429,-500.0,0.00037969,31]
[393210475,1762321837438,-250.0,0.00037969,31]
[393210476,1762321837447,-520.0,0.00037969,31]
[393210477,1762321837456,-151.0,0.00037969,31]
[393210478,1762321837467,-151.0,0.00037969,31]
[393210479,1762321837475,-591.70172729,0.00037969,31]
[393210480,1762321837485,-250.0,0.00037969,31]
[393210481,1762321837494,-151.0,0.00037969,31]
[393210482,1762321837503,-539.24,0.00037969,31]
[393210483,1762321837513,-151.0,0.00037969,31]
[393210484,1762321837522,-289.51749909,0.00037969,31]
[393210485,1762321837532,-151.0,0.00037969,31]
[393210486,1762321837541,-559.19188,0.00037969,31]
[393210487,1762321837551,-151.0,0.00037969,31]
[393210488,1762321837560,-250.0,0.00037969,31]
[393210489,1762321837569,-151.0,0.00037969,31]
[393210490,1762321837578,-579.88197956,0.00037969,31]
[393210491,1762321837588,-151.0,0.00037969,31]
[393210492,1762321837597,-6888.0,0.00037969,31]
[393210493,1762321837607,-250.0,0.00037969,31]
[393210494,1762321837616,-414.0,0.00037969,31]
[393210495,1762321837625,-151.0,0.00037969,31]
[393210496,1762321837634,-601.3376128,0.00037969,31]
[393210497,1762321837643,-158.13302607,0.00037969,31]
[393210498,1762321837652,-500.0,0.00037969,31]
[393210499,1762321837662,-1168.52814627,0.00037969,31]
[393210500,1762321837671,-250.0,0.00037969,31]
[393210502,1762321837680,-623.58710448,0.00037969,31]
[393210503,1762321837689,-151.0,0.00037969,31]
[393210504,1762321837698,-429.318,0.00037969,31]
[393210505,1762321837707,-656.41848616,0.00037969,31]
[393210506,1762321837716,-151.0,0.00037969,31]
[393210507,1762321837726,-200.0,0.00037969,31]
[393210508,1762321837736,-250.0,0.00037969,31]
[393210509,1762321837747,-445.202766,0.00037969,31]
[393210510,1762321837758,-151.0,0.00037969,31]
[393210511,1762321837767,-318.28405004,0.00037969,31]
[393210512,1762321837776,-192.99999984,0.00037969,31]
[393210513,1762321837786,-250.0,0.00037969,31]
[393210514,1762321837795,-151.0,0.00037969,31]
[393210515,1762321837804,-461.67526834,0.00037969,31]
[393210516,1762321837814,-250.0,0.00037969,31]
[393210517,1762321837824,-478.75725327,0.00037969,31]
[393210518,1762321837834,-151.0,0.00037969,31]
[393210519,1762321837843,-250.0,0.00037969,31]
[393210520,1762321837852,-280.85235716,0.00037969,31]
[393210521,1762321837862,-151.0,0.00037969,31]
[393210522,1762321837871,-151.0,0.00037969,31]
[393210523,1762321837880,-151.0,0.00037969,31]
[393210524,1762321837890,-154.50364344,0.00037969,31]
[393210525,1762321837899,-151.0,0.00037969,31]
[393210526,1762321837909,-250.0,0.00037969,31]
[393210527,1762321837918,-151.0,0.00037969,31]
[393210528,1762321837927,-250.0,0.00037969,31]
[393210529,1762321837936,-500.0,0.00037969,31]
[393210530,1762321837946,-151.0,0.00037969,31]
[393210531,1762321837955,-250.0,0.00037969,31]
[393210532,1762321837964,-151.0,0.00037969,31]
[393210533,1762321837973,-250.0,0.00037969,31]
[393210534,1762321837982,-500.0,0.00037969,31]
[393210535,1762321837994,-151.0,0.00037969,31]
[393210536,1762321838004,-151.0,0.00037969,31]
[393210537,1762321838014,-250.0,0.00037969,31]
[393210538,1762321838023,-500.0,0.00037969,31]
[393210539,1762321838034,-151.0,0.00037969,31]
[393210540,1762321838044,-250.0,0.00037969,31]
[393210541,1762321838053,-151.0,0.00037969,31]
[393210542,1762321838063,-250.0,0.00037969,31]
[393210543,1762321838075,-500.0,0.00037969,31]
[393210545,1762321838084,-151.0,0.00037969,31]
[393210547,1762321838093,-168.55909808,0.00037969,31]
[393210548,1762321838102,-151.0,0.00037969,31]
[393210549,1762321838112,-250.0,0.00037969,31]
[393210550,1762321838122,-500.0,0.00037969,31]
[393210552,1762321838131,-500.0,0.00037969,31]
[393210554,1762321838142,-151.0,0.00037969,31]
[393210556,1762321838154,-250.0,0.00037969,31]
[393210558,1762321838164,-500.0,0.00037969,31]
[393210560,1762321838173,-500.0,0.00037969,31]
[393210562,1762321838183,-151.0,0.00037969,31]
[393210564,1762321838192,-250.0,0.00037969,31]
[393210566,1762321838201,-500.0,0.00037969,31]
[393210567,1762321838211,-525.09248982,0.00037969,31]
[393210568,1762321838220,-151.0,0.00037969,31]
[393210569,1762321838230,-500.0,0.00037969,31]
[393210570,1762321838240,-250.0,0.00037969,31]
[393210571,1762321838249,-202.83170012,0.00037969,31]
[393210572,1762321838259,-500.0,0.00037969,31]
[393210573,1762321838268,-151.0,0.00037969,31]
[393210574,1762321838278,-250.0,0.00037969,31]
[393210575,1762321838287,-200.0,0.00037969,31]
[393210576,1762321838297,-500.0,0.00037969,31]
[393210577,1762321838306,-207.4,0.00037969,31]
[393210578,1762321838315,-500.0,0.00037969,31]
[393210579,1762321838325,-215.0738,0.00037969,31]
[393210580,1762321838334,-500.0,0.00037969,31]
[393210581,1762321838344,-223.0315306,0.00037969,31]
[393210582,1762321838353,-500.0,0.00037969,31]
[393210583,1762321838363,-353.70063955,0.00037969,31]
[393210584,1762321838372,-500.0,0.00037969,31]
[393210585,1762321838382,-500.0,0.00037969,31]
[393210586,1762321838391,-500.0,0.00037969,31]
[393210587,1762321838401,-500.0,0.00037969,31]
[393210588,1762321838410,-500.0,0.00037969,31]
[393210589,1762321838420,-250.0,0.00037969,31]
[393210590,1762321838429,-500.0,0.00037969,31]
[393210591,1762321838438,-305.93477162,0.00037969,31]
[393210592,1762321838448,-500.0,0.00037969,31]
[393210593,1762321838458,-202.36480166,0.00037969,31]
[393210594,1762321838467,-151.0,0.00037969,31]
[393210595,1762321838477,-156.587,0.00037969,31]
[393210596,1762321838486,-226.69417931,0.00037969,31]
[393210597,1762321838495,-503.15659393,0.00037973,5]
[393210598,1762321838506,-1000.0,0.00037973,5]
[393210599,1762321838515,-200.0,0.00037977,10]
[393210600,1762321838525,-200.0,0.00037978,10]
[393210601,1762321838535,-200.0,0.00037979,10]
[393210602,1762321838544,-904.85184766,0.0003798,2]
[393210603,1762321838554,-200.0,0.0003798,10]
[393210604,1762321838564,-2500.0,0.0003798,7]
[393210605,1762321838574,-200.0,0.00037981,10]
[393210606,1762321838583,-2500.0,0.00037989,7]
[393210607,1762321838593,-512.43340892,0.00037991,2]
[393210608,1762321838603,-213.406107,0.00037991,2]
[393210609,1762321838613,-1000.0,0.00037997,7]
[393210610,1762321838622,-2500.0,0.00037998,7]
[393210611,1762321838632,-223.35637147,0.00038,120]
[393210612,1762321838642,-1393.26447736,0.00038,120]
[393210613,1762321838652,-184.52598811,0.00038,120]
[393210614,1762321838662,-200.27535613,0.00038,120]
[393210615,1762321838672,-168.72205351,0.00038,120]
[393210616,1762321838682,-1000.0,0.00038,18]
[393210617,1762321838691,-1000.0,0.00038,18]
[393210618,1762321838701,-1000.0,0.00038,18]
[393210619,1762321838710,-1000.0,0.00038,16]
[393210620,1762321838720,-1000.0,0.00038,16]
[393210621,1762321838729,-1000.0,0.00038,16]
[393210622,1762321838738,-1418.0,0.00038,16]
[393210623,1762321838747,-1000.0,0.00038,15]
[393210624,1762321838756,-1000.0,0.00038,15]
[393210625,1762321838766,-1000.0,0.00038,15]
[393210626,1762321838775,-1000.0,0.00038,13]
[393210627,1762321838785,-1000.0,0.00038,13]
[393210628,1762321838794,-1000.0,0.00038,13]
[393210629,1762321838804,-1000.0,0.00038,13]
[393210630,1762321838813,-453.3001649,0.00038,120]
[393210631,1762321838823,-161.13202481,0.00038,30]
[393210632,1762321838833,-477.76462643,0.00038,120]
[393210633,1762321838843,-166.0,0.00038,30]
[393210634,1762321838854,-1425.0,0.00038006,2]
[393210635,1762321838864,-2500.0,0.00038006,7]
[393210636,1762321838874,-258.89485096,0.00038008,2]
[393210638,1762321838884,-1425.0,0.00038009,2]
[393210639,1762321838893,-1300.0,0.00038014,7]
[393210640,1762321838903,-500.0,0.00038014,7]
[393210641,1762321838913,-2500.0,0.00038015,7]
[393210642,1762321838923,-2500.0,0.00038024,7]
[393210643,1762321838933,-5888.0,0.00038028,120]
[393210644,1762321838943,-2500.0,0.00038033,7]
[393210645,1762321838953,-2500.0,0.00038042,7]
[393210646,1762321838964,-2500.0,0.0003805,7]
[393210647,1762321838974,-433.0,0.00038059,2]
[393210648,1762321838983,-419.0,0.00038059,2]
[393210649,1762321838998,-2500.0,0.00038059,7]
[393210650,1762321839008,-2500.0,0.00038068,7]
[393210651,1762321839017,-258.89485096,0.00038068,2]
[393210652,1762321839028,-216.03107045,0.00038071,5]
[393210653,1762321839039,-1500.0,0.00038071,5]
[393210654,1762321839048,-2500.0,0.00038077,7]
[393210655,1762321839058,-1425.0,0.00038079,2]
[393210656,1762321839070,-1000.0,0.00038082,120]
[393210657,1762321839080,-471.29,0.00038082,2]
[393210658,1762321839090,-151.0,0.00038085,14]
[393210659,1762321839101,-2500.0,0.00038086,7]
[393210660,1762321839110,-355.2250863,0.00038087,2]
[393210661,1762321839120,-31163.31908444,0.00038088,7]
[393210662,1762321839415,-84245.74475399,0.00038088,7]
[393210663,1762321839426,-65794.24835573,0.00038088,7]
[393210664,1762321839438,-77482.33466414,0.00038088,7]
[393210665,1762321839453,-574.6,0.00038088,7]
[393210666,1762321839499,247.24523308,0.00014999,2]
[393210667,1762321839511,-7955.11883803,0.00038088,7]
[393210668,1762321839523,-2015.11918552,0.00038088,7]
[393210669,1762321839720,-486.65939574,0.00033767,2]
[393210670,1762321839730,-209.34282057,0.000359,15]
[393210671,1762321839739,-559.0,0.000363,2]
[393210672,1762321839750,-3007.24280759,0.00038088,7]
[393210673,1762321839765,-711.30652537,0.00038088,7]
[393210674,1762321839778,-4999.91255724,0.00038088,7]
[393210675,1762321839791,-5254.56915896,0.00038088,7]
[393210676,1762321839804,-3055.164867,0.00038088,7]
[393210677,1762321839817,-4457.9851755,0.00038088,7]
[393210678,1762321839830,-5353.2532445,0.00038088,7]
[393210679,1762321839843,-4592.63923609,0.00038088,7]
[393210680,1762321839854,-374.1505,0.00038088,7]
[393210681,1762321839865,-2506.09710681,0.00038088,7]
[393210682,1762321839875,-2346.82739702,0.00038088,7]
[393210684,1762321839979,-151.0,0.00038087,2]
[393210685,1762321839993,-1030.06399862,0.00038088,7]
[393210686,1762321840039,-2418.0,0.00038088,7]
[393210687,1762321840097,-2134.66048704,0.00038088,7]
[393210688,1762321840108,-7934.42695492,0.00038088,7]
[393210689,1762321840210,-642.64465263,0.00038088,7]
[393210690,1762321840222,-41901.15586802,0.00038088,7]
[393210691,1762321840232,-2500.0,0.00038094,7]
[393210692,1762321840242,-1093.6179,0.00038097,3]
[393210693,1762321840252,-2000.0,0.00038097,3]
[393210694,1762321840262,-2500.0,0.00038103,7]
[393210695,1762321840272,-1425.0,0.00038105,2]
[393210696,1762321840281,-566.95341,0.0003811,2]
[393210697,1762321840291,-1425.0,0.00038112,2]
[393210698,1762321840300,-2500.0,0.00038112,7]
[393210699,1762321840309,-1000.0,0.00038114,7]
[393210700,1762321840319,-427.32214896,0.0003812,30]
[393210701,1762321840329,-2500.0,0.00038121,7]
[393210702,1762321840338,-258.89485096,0.00038128,2]
[393210703,1762321840347,-2500.0,0.0003813,7]
[393210704,1762321840358,-504.0,0.00038137,2]
[393210705,1762321840367,-2500.0,0.00038138,7]
[393210706,1762321840378,-2500.0,0.00038147,7]
[393210707,1762321840387,-300.0,0.00038154,2]
[393210708,1762321840397,-2500.0,0.00038156,7]
[393210709,1762321840407,-2500.0,0.00038165,7]
[393210710,1762321840417,-1425.0,0.00038168,2]
[393210711,1762321840427,-2500.0,0.00038174,7]
[393210712,1762321840437,-162.12037659,0.0003818,7]
[393210713,1762321840448,-500.0,0.00038182,120]
[393210714,1762321840458,-2500.0,0.00038182,7]
[393210715,1762321840467,-5163.99911279,0.00038183,2]
[393210716,1762321840477,-1475.31273748,0.00038187,2]
[393210717,1762321840487,-11859.28435875,0.00038187,2]
[393210718,1762321840498,-904.85184766,0.00038188,2]
[393210719,1762321840507,-258.89485096,0.00038188,2]
[393210720,1762321840517,-2619.01004294,0.00038188,2]
[393210721,1762321840526,-730.2012218,0.00038188,2]
[393210722,1762321840535,-199.51581665,0.00038188,7]
[393210723,1762321840545,-253.00839205,0.00038188,2]
[393210724,1762321840556,-428.89678196,0.00038188,2]
[393210725,1762321840565,-1425.0,0.0003819,2]
[393210726,1762321840575,-2500.0,0.00038191,7]
[393210727,1762321840584,-198.72308667,0.00038195,7]
[393210728,1762321840594,-433.0,0.00038196,2]
[393210729,1762321840603,-419.0,0.00038196,2]
[393210731,1762321840612,-2000.0,0.00038199,2]
[393210732,1762321840622,-1000.0,0.00038199,2]
[393210733,1762321840632,-1000.0,0.00038199,2]
[393210734,1762321840641,-2000.0,0.00038199,2]
[393210735,1762321840650,-395.0,0.000382,2]
[393210736,1762321840660,-232.32,0.000382,4]
[393210737,1762321840669,-2500.0,0.000382,7]
[393210738,1762321840680,-184.12,0.000382,37]
[393210739,1762321840690,-184.12,0.000382,37]
[393210740,1762321840699,-200.0,0.000382,16]
[393210741,1762321840708,-1425.0,0.00038204,2]
[393210742,1762321840718,-1000.0,0.00038222,7]
[393210743,1762321840727,-1425.0,0.00038224,2]
[393210744,1762321840736,-1425.0,0.00038232,2]
[393210745,1762321840746,-184.0,0.00038247,120]
[393210746,1762321840755,-500.0,0.0003825,2]
[393210747,1762321840764,-1425.0,0.00038253,2]
[393210748,1762321840773,-8912.4036485,0.00038266,2]
[393210749,1762321840782,-500.0,0.00038275,120]
[393210750,1762321840791,-194.126306,0.00038275,120]
[393210751,1762321840800,-555.395878,0.00038275,120]
[393210752,1762321840809,-500.0,0.00038275,120]
[393210753,1762321840818,-892.24381381,0.00038278,2]
[393210754,1762321840827,-892.24381381,0.00038278,2]
[393210755,1762321840837,-626.82797415,0.00038282,2]
[393210756,1762321840846,-500.0,0.00038283,14]
[393210757,1762321840855,-500.0,0.00038283,14]
[393210758,1762321840864,-500.0,0.00038283,14]
[393210759,1762321840873,-500.0,0.00038283,14]
[393210760,1762321840882,-500.0,0.00038283,14]
[393210761,1762321840891,-500.0,0.00038283,14]
[393210762,1762321840900,-500.0,0.00038283,14]
[393210763,1762321840909,-500.0,0.00038283,14]
[393210764,1762321840918,-258.94266936,0.00038283,2]
[393210765,1762321840927,-200.0,0.00038283,2]
[393210766,1762321840936,-500.0,0.00038283,120]
[393210767,1762321840945,-183.33083428,0.00038283,2]
[393210768,1762321840954,-366.37834185,0.00038283,2]
[393210769,1762321840963,-566.95342,0.00038283,2]
[393210770,1762321840972,-200.0,0.00038283,2]
[393210771,1762321840981,-1240.0,0.00038283,7]
[393210772,1762321840993,-1240.0,0.00038283,7]
[393210773,1762321841002,-949.45453968,0.00038283,7]
[393210774,1762321841012,-355.2250863,0.00038283,2]
[393210775,1762321841020,-151.0,0.00038284,14]
[393210776,1762321841031,-629.58,0.00038285,120]
[393210777,1762321841040,-153.83494713,0.00038286,7]
[393210778,1762321841049,-826.0,0.00038286,7]
[393210779,1762321841059,-153.96997627,0.00038286,7]
[393210780,1762321841070,-841.91548812,0.00038286,7]
[393210781,1762321841080,-150.0,0.00038286,20]
[393210782,1762321841089,-588.29,0.00038286,2]
[393210783,1762321841098,-588.29,0.00038286,2]
[393210784,1762321841107,-588.29,0.00038286,2]
[393210785,1762321841116,-588.29,0.00038286,2]
[393210786,1762321841125,-588.29,0.00038286,2]
[393210787,1762321841134,-588.29,0.00038286,2]
[393210788,1762321841143,-588.29,0.00038286,2]
[393210789,1762321841152,-588.29,0.00038286,2]
[393210790,1762321841162,-588.29,0.00038286,2]
[393210791,1762321841171,-588.29,0.00038286,2]
[393210792,1762321841180,-588.29,0.00038286,2]
[393210793,1762321841190,-588.29,0.00038286,2]
[393210794,1762321841199,-588.29,0.00038286,2]
[393210795,1762321841208,-281.80426583,0.00038286,120]
[393210796,1762321841218,-588.29,0.00038286,2]
[393210797,1762321841227,-588.29,0.00038286,2]
[393210798,1762321841237,-588.29,0.00038286,2]
[393210799,1762321841247,-588.48461623,0.00038286,2]
[393210800,1762321841256,-1849.37693886,0.00038286,120]
[393210801,1762321841266,-300.0,0.00038286,10]
[393210802,1762321841275,-666.0,0.00038286,10]
[393210803,1762321841284,-300.0,0.00038286,10]
[393210804,1762321841293,-666.0,0.00038286,10]
[393210805,1762321841302,-300.0,0.00038286,10]
[393210806,1762321841311,-300.0,0.00038287,10]
[393210807,1762321841320,-629.58,0.00038287,120]
[393210808,1762321841330,-629.58,0.00038287,120]
[393210809,1762321841339,-629.58,0.00038287,120]
[393210810,1762321841348,-629.58,0.00038287,120]
[393210811,1762321841357,-629.58,0.00038287,120]
[393210812,1762321841366,-629.58,0.00038287,120]
[393210813,1762321841375,-629.58,0.00038287,120]
[393210814,1762321841384,-629.58,0.00038287,120]
[393210815,1762321841393,-629.58,0.00038287,120]
[393210816,1762321841402,-629.62739474,0.00038287,120]
[393210817,1762321841411,-500.0,0.00038287,120]
[393210818,1762321841421,-500.0,0.00038287,120]
[393210819,1762321841431,-158.25209266,0.00038287,7]
[393210820,1762321841440,-505.04241582,0.00038287,120]
[393210821,1762321841450,-500.0,0.00038287,120]
[393210822,1762321841459,-500.0,0.00038287,120]
[393210823,1762321841468,-290.23366,0.00038287,31]
[393210824,1762321841477,-155.394837,0.00038287,31]
[393210825,1762321841487,-151.0,0.00038287,31]
[393210826,1762321841496,-160.131203,0.00038287,31]
[393210827,1762321841505,-153.854403,0.00038287,31]
[393210828,1762321841514,-159.094845,0.00038287,31]
[393210829,1762321841523,-151.0,0.00038287,31]
[393210830,1762321841532,-151.0,0.00038287,31]
[393210831,1762321841541,-151.0,0.00038287,31]
[393210832,1762321841549,-151.0,0.00038287,31]
[393210833,1762321841559,-151.0,0.00038287,31]
[393210834,1762321841568,-151.0,0.00038287,31]
[393210835,1762321841578,-157.002341,0.00038287,31]
[393210836,1762321841587,-151.0,0.00038287,31]
[393210837,1762321841596,-174.106093,0.00038287,31]
[393210838,1762321841605,-151.0,0.00038287,31]
[393210839,1762321841615,-151.0,0.00038287,31]
[393210840,1762321841624,-151.0,0.00038287,31]
[393210841,1762321841633,-151.0,0.00038287,31]
[393210842,1762321841643,-158.72139,0.00038287,31]
[393210843,1762321841652,-166.723374,0.00038287,31]
[393210844,1762321841662,-151.0,0.00038287,31]
[393210845,1762321841671,-151.0,0.00038287,31]
[393210846,1762321841718,-151.0,0.00038287,31]
[393210847,1762321841727,-151.0,0.00038287,28]
[393210848,1762321841737,-151.0,0.00038287,28]
[393210849,1762321841746,-151.0,0.00038287,28]
[393210850,1762321841755,-151.0,0.00038287,28]
[393210851,1762321841764,-151.0,0.00038287,31]
[393210852,1762321841773,-151.0,0.00038287,31]